[Event "Najdorf Memorial-B 2022"]
[Site "Warsaw"]
[Date "2022.07.12"]
[Round "4.1"]
[White "Yasmo, Daniil"]
[Black "Mossakowski, Jakub"]
[Result "1-0"]
[ECO "A67"]
[WhiteElo "1680"]
[BlackElo "1487"]
[Annotator "NA"]
[PlyCount "153"]
[EventDate "2022.07.09"]
[EventType "swiss"]
[EventCountry "POL"]
[SourceTitle "playchess.com"]
[Source "ChessBase"]
[SourceQuality "1"]
[TimeControl "40/5400+30:1800+30"]

1. d4 {[%emt 0:00:04]} Nf6 {[%emt 0:00:11]} 2. c4 {[%emt 0:00:09]} c5 {[%emt 0:00:06]} 3. d5 {[%emt 0:00:22]} e6 {[%emt 0:00:08]} 4. Nc3 {[%emt 0:00:38]} exd5 {[%emt 0:00:07]} 5. cxd5 {[%emt 0:00:06]} d6 {[%emt 0:00:05]} 6. e4 {[%emt 0:00:05]} g6 {[%emt 0:00:12]} 7. f4 {[%emt 0:01:20]} Bg7 {[%emt 0:01:14]} 8. Bb5+ {[%emt 0:01:05]} Bd7 {[%emt 0:00:17]} 9. e5 {[%emt 0:03:09]} Qe7 {[%emt 0:05:16]} 10. Qe2 {[%emt 0:06:17]} Ng8 {[%emt 0:08:39]} 11. Nf3 {[%emt 0:04:04]} a6 {[%emt 0:01:22]} 12. Bxd7+ {[%emt 0:00:08]} Nxd7 {[%emt 0:02:12]} 13. e6 {[%emt 0:01:35]} fxe6 {[%emt 0:01:34]} 14. dxe6 {[%emt 0:00:12]} Ndf6 {[%emt 0:00:31]} 15. Ng5 {[%emt 0:03:01]} Nh6 {[%emt 0:00:09]} 16. Nge4 {[%emt 0:02:34]} Nxe4 {[%emt 0:02:28]} 17. Qxe4 {[%emt 0:00:24]} Bxc3+ {[%emt 0:00:20]} 18. bxc3 {[%emt 0:00:01]} O-O {[%emt 0:00:57]} 19. O-O {[%emt 0:00:40]} Rae8 {[%emt 0:04:17]} 20. Re1 {[%emt 0:07:41]} Ng4 {[%emt 0:03:57]} 21. h3 {[%emt 0:01:56]} Nf6 {[%emt 0:01:37]} 22. Qd3 {[%emt 0:01:08]} Nh5 {[%emt 0:03:46]} 23. f5 {[%emt 0:05:24]} Rxf5 {[%emt 0:15:14]} 24. Bh6 {[%emt 0:05:44]} Ng7 {[%emt 0:07:00]} 25. g4 {[%emt 0:01:04]} Re5 {[%emt 0:01:33]} 26. Rxe5 {[%emt 0:01:14]} dxe5 {[%emt 0:00:08]} 27. Qd5 {[%emt 0:04:30]} Qxe6 {[%emt 0:03:52]} 28. Qxb7 {[%emt 0:00:18]} Re7 {[%emt 0:00:48]} 29. Qb8+ {[%emt 0:01:40]} Re8 {[%emt 0:00:23]} 30. Qa7 {[%emt 0:00:51]} Re7 {[%emt 0:02:24]} 31. Qxc5 {[%emt 0:00:39]} e4 {[%emt 0:06:26]} 32. Rd1 {[%emt 0:05:09]} e3 {[%emt 0:04:16]} 33. Rd8+ {[%emt 0:00:48]} Ne8 {[%emt 0:04:11]} 34. Qd4 {[%emt 0:00:26]} Qe5 {[%emt 0:00:52]} 35. Qxe5 {[%emt 0:04:55]} Rxe5 {[%emt 0:00:19]} 36. Kf1 {[%emt 0:00:22]} e2+ {[%emt 0:02:39]} 37. Ke1 {[%emt 0:00:02]} Kf7 {[%emt 0:02:20]} 38. Rd2 {[%emt 0:04:36]} Ke6 {[%emt 0:02:03]} 39. Rxe2 {[%emt 0:00:16]} Rxe2+ {[%emt 0:00:09]} 40. Kxe2 {[%emt 0:00:00]} Kd5 {[%emt 0:00:00]} 41. Kd3 {[%emt 0:00:16]} Nd6 {[%emt 0:01:20]} 42. Bf4 {[%emt 0:00:53]} Nc4 {[%emt 0:01:18]} 43. Be3 {[%emt 0:01:37]} Ne5+ {[%emt 0:00:33]} 44. Ke2 {[%emt 0:00:27]} Ke4 {[%emt 0:00:25]} 45. Bd4 {[%emt 0:00:23]} Nf3 {[%emt 0:00:45]} 46. Ba7 {[%emt 0:01:48]} Ng5 {[%emt 0:00:49]} 47. h4 {[%emt 0:00:20]} Nf3 {[%emt 0:00:26]} 48. Bf2 {[%emt 0:01:14]} Ne5 {[%emt 0:01:27]} 49. g5 {[%emt 0:00:21]} Nc4 {[%emt 0:00:42]} 50. Bd4 {[%emt 0:04:18]} Nd6 {[%emt 0:01:50]} 51. Kd2 {[%emt 0:04:41]} Nf5 {[%emt 0:01:00]} 52. Bf2 {[%emt 0:00:49]} Kf3 {[%emt 0:01:55]} 53. Be1 {[%emt 0:00:14]} Ke4 {[%emt 0:00:40]} 54. Bf2 {[%emt 0:02:25]} Kf3 {[%emt 0:01:08]} 55. Be1 {[%emt 0:02:33]} Ke4 {[%emt 0:00:08]} 56. Ke2 {[%emt 0:00:31]} Nd6 {[%emt 0:00:27]} 57. Kd2 {[%emt 0:02:57]} Nf5 {[%emt 0:01:40]} 58. Kc2 {[%emt 0:04:51]} Ke3 {[%emt 0:00:22]} 59. c4 {[%emt 0:00:45]} Kd4 {[%emt 0:01:44]} 60. Kb3 {[%emt 0:00:43]} Kc5 {[%emt 0:02:29]} 61. Bf2+ {[%emt 0:00:37]} Kc6 {[%emt 0:00:52]} 62. Kb4 {[%emt 0:00:47]} Nd6 {[%emt 0:00:23]} 63. c5 {[%emt 0:01:36]} Nb7 {[%emt 0:00:24]} 64. Kc4 {[%emt 0:00:32]} Nd8 {[%emt 0:02:56]} 65. Kd4 {[%emt 0:02:25]} Nf7 {[%emt 0:00:34]} 66. Be3 {[%emt 0:00:56]} a5 {[%emt 0:01:06]} 67. a4 {[%emt 0:00:21]} Kd7 {[%emt 0:02:37]} 68. Kd5 {[%emt 0:01:12]} Nd8 {[%emt 0:00:12]} 69. Bf4 {[%emt 0:01:05]} Nc6 {[%emt 0:01:32]} 70. Bd6 {[%emt 0:00:12]} Nb4+ {[%emt 0:01:05]} 71. Ke5 {[%emt 0:00:24]} Nd3+ {[%emt 0:00:47]} 72. Kf6 {[%emt 0:00:13]} Ne1 {[%emt 0:00:52]} 73. Kg7 {[%emt 0:00:21]} Nf3 {[%emt 0:00:20]} 74. Bg3 {[%emt 0:00:25]} Kc6 {[%emt 0:00:16]} 75. Bf2 {[%emt 0:00:29]} Ne5 {[%emt 0:00:35]} 76. Kxh7 {[%emt 0:00:12]} Kd7 {[%emt 0:00:43]} 77. Bg3 {[%emt 0:00:17]} 1-0

[Event "Najdorf Memorial-B 2022"]
[Site "Warsaw"]
[Date "2022.07.12"]
[Round "4.2"]
[White "Trochimczuk, Szymon"]
[Black "Slusarczyk, Anna"]
[Result "1/2-1/2"]
[ECO "E17"]
[WhiteElo "1480"]
[BlackElo "1637"]
[Annotator "NA"]
[PlyCount "128"]
[EventDate "2022.07.09"]
[EventType "swiss"]
[EventCountry "POL"]
[SourceTitle "playchess.com"]
[Source "ChessBase"]
[SourceQuality "1"]
[TimeControl "40/5400+30:1800+30"]

1. d4 {[%emt 0:00:01]} Nf6 {[%emt 0:00:06]} 2. c4 {[%emt 0:00:04]} e6 {[%emt 0:00:04]} 3. Nf3 {[%emt 0:00:03]} b6 {[%emt 0:00:04]} 4. g3 {[%emt 0:00:04]} Bb7 {[%emt 0:00:04]} 5. Bg2 {[%emt 0:00:03]} Be7 {[%emt 0:00:29]} 6. O-O {[%emt 0:00:07]} d6 {[%emt 0:00:04]} 7. Qc2 {[%emt 0:01:16]} Nbd7 {[%emt 0:00:26]} 8. Nc3 {[%emt 0:00:47]} O-O {[%emt 0:02:35]} 9. e4 {[%emt 0:01:15]} c5 {[%emt 0:06:14]} 10. d5 {[%emt 0:02:55]} exd5 {[%emt 0:06:04]} 11. cxd5 {[%emt 0:02:06]} Ba6 {[%emt 0:00:37]} 12. Re1 {[%emt 0:06:16]} Ng4 {[%emt 0:00:55]} 13. Bf4 {[%emt 0:04:52]} g5 {[%emt 0:01:50]} 14. Be3 {[%emt 0:16:36]} Nxe3 {[%emt 0:04:21]} 15. Rxe3 {[%emt 0:00:12]} g4 {[%emt 0:00:07]} 16. Nd2 {[%emt 0:03:58]} Bg5 {[%emt 0:03:00]} 17. Ree1 {[%emt 0:05:07]} Ne5 {[%emt 0:01:12]} 18. Nf1 {[%emt 0:04:48]} Nd3 {[%emt 0:05:29]} 19. Red1 {[%emt 0:01:11]} c4 {[%emt 0:00:38]} 20. e5 {[%emt 0:07:21]} Nxe5 {[%emt 0:03:00]} 21. Ne4 {[%emt 0:04:46]} f5 {[%emt 0:02:54]} 22. Nxg5 {[%emt 0:00:27]} Qxg5 {[%emt 0:00:18]} 23. Qa4 {[%emt 0:04:04]} Bb7 {[%emt 0:02:54]} 24. Ne3 {[%emt 0:03:22]} a6 {[%emt 0:00:59]} 25. Qb4 {[%emt 0:01:03]} b5 {[%emt 0:07:08]} 26. Qxd6 {[%emt 0:01:20]} f4 {[%emt 0:00:15]} 27. Nc2 {[%emt 0:02:56]} f3 {[%emt 0:05:49]} 28. Bf1 {[%emt 0:00:30]} Kh8 {[%emt 0:02:36]} 29. Re1 {[%emt 0:02:26]} Nf7 {[%emt 0:02:40]} 30. Qd7 {[%emt 0:02:48]} Bxd5 {[%emt 0:13:21]} 31. Ne3 {[%emt 0:00:13]} Rfd8 {[%emt 0:02:30]} 32. Qxg4 {[%emt 0:00:25]} Qxg4 {[%emt 0:12:10]} 33. Nxg4 {[%emt 0:00:01]} b4 {[%emt 0:01:31]} 34. Re3 {[%emt 0:03:10]} Rac8 {[%emt 0:02:01]} 35. Nf6 {[%emt 0:01:05]} c3 {[%emt 0:08:08]} 36. bxc3 {[%emt 0:00:04]} bxc3 {[%emt 0:00:44]} 37. Nxd5 {[%emt 0:03:51]} Rxd5 {[%emt 0:00:44]} 38. Bh3 {[%emt 0:03:00]} Rc6 {[%emt 0:01:54]} 39. Be6 {[%emt 0:01:30]} c2 {[%emt 0:00:36]} 40. Bxd5 {[%emt 0:00:00]} c1=Q+ {[%emt 0:00:00]} 41. Re1 {[%emt 0:01:17]} Qc5 {[%emt 0:02:11]} 42. Bxc6 {[%emt 0:04:33]} Qxc6 {[%emt 0:00:12]} 43. h4 {[%emt 0:08:37]} Nh6 {[%emt 0:11:05]} 44. Rac1 {[%emt 0:05:46]} Qd7 {[%emt 0:09:28]} 45. Rc3 {[%emt 0:02:24]} Qg4 {[%emt 0:04:45]} 46. Ree3 {[%emt 0:03:45]} Nf5 {[%emt 0:00:29]} 47. Rxf3 {[%emt 0:00:53]} Nd4 {[%emt 0:00:14]} 48. Rfe3 {[%emt 0:07:28]} Ne2+ {[%emt 0:00:17]} 49. Rxe2 {[%emt 0:02:24]} Qxe2 {[%emt 0:00:05]} 50. Ra3 {[%emt 0:01:16]} Kg7 {[%emt 0:00:52]} 51. Kg2 {[%emt 0:00:24]} Kg6 {[%emt 0:00:56]} 52. Ra4 {[%emt 0:00:48]} h5 {[%emt 0:00:27]} 53. a3 {[%emt 0:00:25]} Qb5 {[%emt 0:01:07]} 54. Rf4 {[%emt 0:01:09]} Qd5+ {[%emt 0:01:43]} 55. Kg1 {[%emt 0:01:47]} a5 {[%emt 0:00:55]} 56. a4 {[%emt 0:00:09]} Qd6 {[%emt 0:00:43]} 57. Kg2 {[%emt 0:00:28]} Qd5+ {[%emt 0:01:22]} 58. Kf1 {[%emt 0:00:54]} Qd1+ {[%emt 0:00:31]} 59. Kg2 {[%emt 0:00:06]} Qd2 {[%emt 0:00:40]} 60. Kf1 {[%emt 0:00:41]} Qd1+ {[%emt 0:00:21]} 61. Kg2 {[%emt 0:00:14]} Qd3 {[%emt 0:00:25]} 62. Kg1 {[%emt 0:01:27]} Qb1+ {[%emt 0:02:08]} 63. Kg2 {[%emt 0:00:30]} Qe1 {[%emt 0:00:20]} 64. Kf3 {[%emt 0:00:26]} Qd1+ {[%emt 0:00:08]} 1/2-1/2

[Event "Najdorf Memorial-B 2022"]
[Site "Warsaw"]
[Date "2022.07.12"]
[Round "4.3"]
[White "Bubien, Antoni"]
[Black "Tsiapko, Andrii"]
[Result "1-0"]
[ECO "B31"]
[WhiteElo "1472"]
[BlackElo "1538"]
[Annotator "NA"]
[PlyCount "75"]
[EventDate "2022.07.09"]
[EventType "swiss"]
[EventCountry "POL"]
[SourceTitle "playchess.com"]
[Source "ChessBase"]
[SourceQuality "1"]
[TimeControl "40/5400+30:1800+30"]

1. e4 {[%emt 0:00:02]} c5 {[%emt 0:00:51]} 2. Nf3 {[%emt 0:00:06]} Nc6 {[%emt 0:00:16]} 3. Bb5 {[%emt 0:00:06]} g6 {[%emt 0:00:20]} 4. O-O {[%emt 0:00:17]} Bg7 {[%emt 0:00:18]} 5. c3 {[%emt 0:00:07]} Nf6 {[%emt 0:00:51]} 6. Re1 {[%emt 0:00:21]} O-O {[%emt 0:00:25]} 7. d4 {[%emt 0:00:08]} d5 {[%emt 0:03:12]} 8. exd5 {[%emt 0:06:55]} Qxd5 {[%emt 0:06:48]} 9. c4 {[%emt 0:05:30]} Qd8 {[%emt 0:09:38]} 10. d5 {[%emt 0:00:40]} Nb8 {[%emt 0:00:48]} 11. Nc3 {[%emt 0:01:18]} Bg4 {[%emt 0:11:30]} 12. h3 {[%emt 0:01:56]} Bxf3 {[%emt 0:00:51]} 13. Qxf3 {[%emt 0:00:10]} Nbd7 {[%emt 0:01:48]} 14. Bg5 {[%emt 0:02:48]} h6 {[%emt 0:10:18]} 15. Bh4 {[%emt 0:00:55]} Nb6 {[%emt 0:02:26]} 16. d6 {[%emt 0:08:07]} exd6 {[%emt 0:05:53]} 17. Qxb7 {[%emt 0:06:51]} Qc8 {[%emt 0:07:04]} 18. Qf3 {[%emt 0:06:06]} g5 {[%emt 0:12:38]} 19. Bg3 {[%emt 0:00:07]} Qc7 {[%emt 0:01:05]} 20. Rad1 {[%emt 0:07:09]} Rfd8 {[%emt 0:02:35]} 21. Bc6 {[%emt 0:04:19]} Rac8 {[%emt 0:01:24]} 22. Bb7 {[%emt 0:00:27]} Rb8 {[%emt 0:00:30]} 23. Ba6 {[%emt 0:00:50]} Re8 {[%emt 0:11:23]} 24. Rxe8+ {[%emt 0:01:42]} Nxe8 {[%emt 0:00:40]} 25. Nb5 {[%emt 0:00:13]} Qe7 {[%emt 0:00:56]} 26. Nxd6 {[%emt 0:00:21]} Rd8 {[%emt 0:01:35]} 27. Nf5 {[%emt 0:05:08]} Rxd1+ {[%emt 0:01:55]} 28. Qxd1 {[%emt 0:00:03]} Qe4 {[%emt 0:01:06]} 29. Qd8 {[%emt 0:03:58]} Bf6 {[%emt 0:03:01]} 30. Qb8 {[%emt 0:03:02]} Qxf5 {[%emt 0:02:02]} 31. Qxe8+ {[%emt 0:00:13]} Kg7 {[%emt 0:00:02]} 32. Bd6 {[%emt 0:03:45]} Qb1+ {[%emt 0:01:46]} 33. Kh2 {[%emt 0:00:06]} Bxb2 {[%emt 0:00:23]} 34. Bb7 {[%emt 0:00:30]} Nxc4 35. Bf8+ {[%emt 0:00:15]} Kf6 {[%emt 0:01:07]} 36. Qe7+ {[%emt 0:00:14]} Kf5 {[%emt 0:00:29]} 37. Qxf7+ {[%emt 0:00:42]} Bf6 {[%emt 0:00:08]} 38. Bc8+ {[%emt 0:00:28]} 1-0

[Event "Najdorf Memorial-B 2022"]
[Site "Warsaw"]
[Date "2022.07.12"]
[Round "4.4"]
[White "Piddubna, Bozhena"]
[Black "Matskevich, Varvara"]
[Result "1-0"]
[ECO "A28"]
[WhiteElo "1534"]
[BlackElo "1467"]
[Annotator "NA"]
[PlyCount "61"]
[EventDate "2022.07.09"]
[EventType "swiss"]
[EventCountry "POL"]
[SourceTitle "playchess.com"]
[Source "ChessBase"]
[SourceQuality "1"]
[TimeControl "40/5400+30:1800+30"]

1. c4 {[%emt 0:01:13]} e5 {[%emt 0:00:18]} 2. Nc3 {[%emt 0:00:14]} Nf6 {[%emt 0:00:26]} 3. Nf3 {[%emt 0:00:14]} Nc6 {[%emt 0:01:05]} 4. e4 {[%emt 0:00:19]} Bc5 {[%emt 0:01:43]} 5. Nxe5 {[%emt 0:00:24]} Bxf2+ {[%emt 0:01:06]} 6. Kxf2 {[%emt 0:00:12]} Nxe5 {[%emt 0:00:15]} 7. d4 {[%emt 0:00:22]} Ng6 {[%emt 0:03:44]} 8. Be2 {[%emt 0:03:12]} O-O {[%emt 0:02:48]} 9. Rf1 {[%emt 0:01:30]} c6 {[%emt 0:02:57]} 10. Kg1 {[%emt 0:02:34]} h6 {[%emt 0:01:43]} 11. d5 {[%emt 0:08:08]} Qe7 {[%emt 0:05:09]} 12. d6 {[%emt 0:04:35]} Qe6 {[%emt 0:00:31]} 13. Qd4 {[%emt 0:01:40]} b6 {[%emt 0:01:23]} 14. b4 {[%emt 0:16:05]} c5 {[%emt 0:10:54]} 15. bxc5 {[%emt 0:00:27]} bxc5 {[%emt 0:00:04]} 16. Qxc5 {[%emt 0:05:47]} Bb7 {[%emt 0:02:58]} 17. Qd4 {[%emt 0:04:05]} Nxe4 {[%emt 0:01:04]} 18. Nxe4 {[%emt 0:00:45]} Qxe4 {[%emt 0:00:51]} 19. Qxe4 {[%emt 0:10:59]} Bxe4 {[%emt 0:00:08]} 20. Bb2 {[%emt 0:00:27]} Rfe8 {[%emt 0:00:54]} 21. Bg4 {[%emt 0:01:23]} Bc6 {[%emt 0:01:50]} 22. Rae1 {[%emt 0:04:14]} f6 {[%emt 0:08:15]} 23. Bd4 {[%emt 0:04:47]} a5 {[%emt 0:01:35]} 24. g3 {[%emt 0:07:18]} a4 {[%emt 0:06:58]} 25. Bf5 {[%emt 0:05:03]} Nf8 {[%emt 0:01:00]} 26. Re7 {[%emt 0:02:00]} Reb8 {[%emt 0:01:11]} 27. Rf4 {[%emt 0:02:45]} Re8 {[%emt 0:02:20]} 28. Bxf6 {[%emt 0:02:06]} gxf6 {[%emt 0:01:08]} 29. Rg4+ {[%emt 0:00:07]} Kh8 {[%emt 0:00:07]} 30. Reg7 {[%emt 0:00:07]} Ng6 {[%emt 0:01:17]} 31. R7xg6 {[%emt 0:00:14]} 1-0

[Event "Najdorf Memorial-B 2022"]
[Site "Warsaw"]
[Date "2022.07.12"]
[Round "4.5"]
[White "Napieralski, Lucjan"]
[Black "Flis, Piotr"]
[Result "1-0"]
[ECO "C89"]
[WhiteElo "1414"]
[BlackElo "1523"]
[Annotator "NA"]
[PlyCount "62"]
[EventDate "2022.07.09"]
[EventType "swiss"]
[EventCountry "POL"]
[SourceTitle "playchess.com"]
[Source "ChessBase"]
[SourceQuality "1"]
[TimeControl "40/5400+30:1800+30"]

1. e4 {[%emt 0:00:01]} e5 {[%emt 0:00:21]} 2. Nf3 {[%emt 0:00:04]} Nc6 {[%emt 0:00:11]} 3. Bb5 {[%emt 0:00:04]} a6 {[%emt 0:01:09]} 4. Ba4 {[%emt 0:00:07]} Nf6 {[%emt 0:00:11]} 5. O-O {[%emt 0:00:13]} Be7 {[%emt 0:00:56]} 6. Re1 {[%emt 0:01:02]} b5 {[%emt 0:00:14]} 7. Bb3 {[%emt 0:00:04]} O-O {[%emt 0:00:10]} 8. c3 {[%emt 0:01:21]} d5 {[%emt 0:01:45]} 9. exd5 {[%emt 0:03:53]} Nxd5 {[%emt 0:04:12]} 10. Nxe5 {[%emt 0:01:23]} Nxe5 {[%emt 0:00:27]} 11. Rxe5 {[%emt 0:00:05]} c6 {[%emt 0:00:24]} 12. d4 {[%emt 0:08:15]} Bd6 {[%emt 0:00:11]} 13. Re1 {[%emt 0:00:54]} Qh4 {[%emt 0:00:12]} 14. g3 {[%emt 0:00:42]} Qh3 {[%emt 0:00:10]} 15. Qf3 {[%emt 0:01:58]} Bg4 {[%emt 0:00:10]} 16. Qg2 {[%emt 0:01:41]} Qh5 {[%emt 0:00:09]} 17. Be3 {[%emt 0:03:14]} Rae8 {[%emt 0:24:32]} 18. Nd2 {[%emt 0:05:33]} Re6 {[%emt 0:13:42]} 19. Bd1 {[%emt 0:18:28]} Rxe3 {[%emt 0:12:54]} 20. fxe3 {[%emt 0:02:53]} Bxd1 {[%emt 0:00:12]} 21. e4 {[%emt 0:02:24]} Bg4 {[%emt 0:09:45]} 22. exd5 {[%emt 0:00:49]} cxd5 {[%emt 0:00:10]} 23. Re3 {[%emt 0:01:29]} Bh3 {[%emt 0:01:12]} 24. Qh1 {[%emt 0:05:16]} Qg5 {[%emt 0:00:39]} 25. Qf3 {[%emt 0:05:27]} Bg4 {[%emt 0:00:50]} 26. Qf2 {[%emt 0:00:25]} f5 {[%emt 0:00:34]} 27. Nf3 {[%emt 0:01:56]} Qh5 {[%emt 0:04:22]} 28. Ne5 {[%emt 0:02:27]} f4 {[%emt 0:06:19]} 29. gxf4 {[%emt 0:02:28]} Bf5 {[%emt 0:07:25]} 30. Qf3 {[%emt 0:03:49]} Qh6 {[%emt 0:00:11]} 31. Qxd5+ {[%emt 0:03:02]} Be6 {[%emt 0:00:11]} 1-0

[Event "Najdorf Memorial-B 2022"]
[Site "Warsaw"]
[Date "2022.07.12"]
[Round "4.6"]
[White "Dysko, Michal"]
[Black "Grudzinski, Krzysztof"]
[Result "1-0"]
[ECO "A15"]
[WhiteElo "1376"]
[BlackElo "1520"]
[Annotator "NA"]
[PlyCount "79"]
[EventDate "2022.07.09"]
[EventType "swiss"]
[EventCountry "POL"]
[SourceTitle "playchess.com"]
[Source "ChessBase"]
[SourceQuality "1"]
[TimeControl "40/5400+30:1800+30"]

1. c4 {[%emt 0:00:19]} Nf6 {[%emt 0:00:38]} 2. g3 {[%emt 0:00:33]} e6 {[%emt 0:01:14]} 3. Bg2 {[%emt 0:00:23]} c5 {[%emt 0:02:57]} 4. Nc3 {[%emt 0:00:06]} Nc6 {[%emt 0:00:35]} 5. e4 {[%emt 0:00:09]} Be7 {[%emt 0:00:35]} 6. Nge2 {[%emt 0:00:08]} O-O {[%emt 0:01:41]} 7. O-O {[%emt 0:00:07]} a6 {[%emt 0:06:03]} 8. d3 {[%emt 0:03:22]} d6 {[%emt 0:03:12]} 9. a3 {[%emt 0:02:44]} Rb8 {[%emt 0:02:10]} 10. Rb1 {[%emt 0:00:30]} Nd4 {[%emt 0:38:54]} 11. b4 {[%emt 0:07:55]} Bd7 {[%emt 0:04:15]} 12. Be3 {[%emt 0:06:28]} e5 {[%emt 0:00:56]} 13. h3 {[%emt 0:00:22]} b5 {[%emt 0:05:51]} 14. cxb5 axb5 {[%emt 0:03:47]} 15. f4 {[%emt 0:28:03]} Bc6 {[%emt 0:05:18]} 16. bxc5 {[%emt 0:05:00]} Nxe2+ {[%emt 0:01:29]} 17. Qxe2 {[%emt 0:06:25]} exf4 {[%emt 0:03:32]} 18. Bxf4 {[%emt 0:00:23]} dxc5 {[%emt 0:00:20]} 19. Bxb8 {[%emt 0:02:52]} Qxb8 {[%emt 0:00:37]} 20. e5 {[%emt 0:06:18]} Bxg2 {[%emt 0:00:44]} 21. Kxg2 {[%emt 0:00:02]} Nd7 {[%emt 0:04:10]} 22. e6 {[%emt 0:05:09]} Nf6 {[%emt 0:00:40]} 23. exf7+ {[%emt 0:00:37]} Rxf7 {[%emt 0:00:30]} 24. Rxb5 {[%emt 0:00:56]} Qa8+ {[%emt 0:02:01]} 25. Kh2 {[%emt 0:00:50]} Qxa3 {[%emt 0:08:27]} 26. Rb8+ {[%emt 0:01:39]} Bf8 {[%emt 0:00:12]} 27. Ne4 {[%emt 0:00:21]} Nxe4 {[%emt 0:02:22]} 28. Rxf7 {[%emt 0:00:23]} Kxf7 {[%emt 0:00:03]} 29. Qxe4 {[%emt 0:00:43]} Qa2+ {[%emt 0:00:42]} 30. Qg2 {[%emt 0:00:15]} Qxg2+ {[%emt 0:00:14]} 31. Kxg2 {[%emt 0:00:06]} Be7 {[%emt 0:00:44]} 32. Kf3 {[%emt 0:00:51]} Ke6 {[%emt 0:00:32]} 33. Ke4 {[%emt 0:00:43]} Bd6 {[%emt 0:00:54]} 34. Rb6 {[%emt 0:00:19]} Kd7 {[%emt 0:00:37]} 35. g4 {[%emt 0:00:29]} Bc7 {[%emt 0:00:13]} 36. Ra6 {[%emt 0:01:09]} Bd6 {[%emt 0:00:47]} 37. Kd5 {[%emt 0:00:45]} Be7 {[%emt 0:00:29]} 38. Ra7+ {[%emt 0:00:55]} Kd8 {[%emt 0:00:16]} 39. Rxe7 {[%emt 0:01:47]} Kxe7 {[%emt 0:00:09]} 40. Kxc5 {[%emt 0:00:00]} 1-0

[Event "Najdorf Memorial-B 2022"]
[Site "Warsaw"]
[Date "2022.07.12"]
[Round "4.7"]
[White "Przybylski, Jan"]
[Black "Terkiewicz, Bruno"]
[Result "0-1"]
[ECO "C68"]
[WhiteElo "1685"]
[BlackElo "1473"]
[Annotator "NA"]
[PlyCount "76"]
[EventDate "2022.07.09"]
[EventType "swiss"]
[EventCountry "POL"]
[SourceTitle "playchess.com"]
[Source "ChessBase"]
[SourceQuality "1"]
[TimeControl "40/5400+30:1800+30"]

1. e4 {[%emt 0:00:09]} e5 {[%emt 0:00:01]} 2. Nf3 {[%emt 0:00:08]} Nc6 {[%emt 0:00:01]} 3. Bb5 {[%emt 0:00:19]} a6 {[%emt 0:00:25]} 4. Bxc6 {[%emt 0:01:06]} dxc6 {[%emt 0:00:02]} 5. d4 {[%emt 0:00:16]} exd4 {[%emt 0:02:25]} 6. Qxd4 {[%emt 0:00:50]} Bg4 {[%emt 0:01:11]} 7. Qe3 {[%emt 0:04:29]} Bb4+ {[%emt 0:24:27]} 8. Bd2 {[%emt 0:01:02]} Qe7 {[%emt 0:00:06]} 9. O-O {[%emt 0:05:47]} Nf6 {[%emt 0:10:19]} 10. Qb3 {[%emt 0:21:21]} a5 {[%emt 0:05:02]} 11. Bxb4 axb4 {[%emt 0:06:26]} 12. Nbd2 {[%emt 0:13:17]} O-O {[%emt 0:02:50]} 13. Rfe1 {[%emt 0:01:19]} Be6 {[%emt 0:09:30]} 14. Qe3 {[%emt 0:02:29]} Ng4 {[%emt 0:00:17]} 15. Qe2 {[%emt 0:01:43]} Qc5 {[%emt 0:03:50]} 16. Nb3 {[%emt 0:01:39]} Bxb3 {[%emt 0:00:06]} 17. axb3 {[%emt 0:00:17]} Ne5 {[%emt 0:00:17]} 18. Nxe5 {[%emt 0:14:41]} Qxe5 {[%emt 0:00:03]} 19. Rxa8 {[%emt 0:01:26]} Rxa8 {[%emt 0:00:06]} 20. Rb1 {[%emt 0:02:36]} Qd4 {[%emt 0:01:59]} 21. Qd3 {[%emt 0:01:43]} Rd8 {[%emt 0:07:40]} 22. Rd1 {[%emt 0:00:37]} c5 {[%emt 0:02:32]} 23. Qxd4 {[%emt 0:00:41]} Rxd4 {[%emt 0:00:05]} 24. Rxd4 {[%emt 0:00:13]} cxd4 {[%emt 0:00:05]} 25. Kf1 {[%emt 0:01:19]} f6 {[%emt 0:02:09]} 26. Ke2 {[%emt 0:00:41]} c5 {[%emt 0:00:14]} 27. Kd3 {[%emt 0:00:11]} b5 {[%emt 0:00:04]} 28. f4 {[%emt 0:01:57]} Kf7 {[%emt 0:00:21]} 29. e5 {[%emt 0:00:46]} fxe5 {[%emt 0:13:20]} 30. fxe5 {[%emt 0:00:22]} Ke7 {[%emt 0:03:10]} 31. Ke4 {[%emt 0:10:11]} Ke6 {[%emt 0:00:05]} 32. Kf4 {[%emt 0:00:04]} Kd5 {[%emt 0:02:31]} 33. Kf5 {[%emt 0:00:40]} c4 {[%emt 0:02:11]} 34. e6 {[%emt 0:00:57]} Kd6 {[%emt 0:00:05]} 35. Ke4 {[%emt 0:01:06]} d3 {[%emt 0:00:37]} 36. cxd3 {[%emt 0:00:49]} c3 {[%emt 0:00:05]} 37. bxc3 {[%emt 0:00:08]} bxc3 {[%emt 0:00:06]} 38. Ke3 {[%emt 0:00:07]} b4 {[%emt 0:00:11]} 0-1

[Event "Najdorf Memorial-B 2022"]
[Site "Warsaw"]
[Date "2022.07.12"]
[Round "4.8"]
[White "Jaroszuk, Marcin"]
[Black "Nocek, Dominik"]
[Result "1/2-1/2"]
[ECO "A49"]
[WhiteElo "1476"]
[BlackElo "1682"]
[Annotator "NA"]
[PlyCount "76"]
[EventDate "2022.07.09"]
[EventType "swiss"]
[EventCountry "POL"]
[SourceTitle "playchess.com"]
[Source "ChessBase"]
[SourceQuality "1"]
[TimeControl "40/5400+30:1800+30"]

1. Nf3 {[%emt 0:06:25]} Nf6 {[%emt 0:00:02]} 2. d4 {[%emt 0:00:06]} g6 {[%emt 0:00:10]} 3. g3 {[%emt 0:00:13]} Bg7 {[%emt 0:00:12]} 4. Bg2 {[%emt 0:00:46]} O-O {[%emt 0:00:09]} 5. O-O {[%emt 0:00:06]} c5 {[%emt 0:01:55]} 6. c4 {[%emt 0:00:27]} cxd4 {[%emt 0:12:05]} 7. Nxd4 {[%emt 0:00:12]} Nc6 {[%emt 0:00:15]} 8. Nc3 {[%emt 0:00:26]} Nxd4 {[%emt 0:03:04]} 9. Qxd4 {[%emt 0:00:10]} d6 {[%emt 0:00:19]} 10. Qh4 {[%emt 0:00:20]} Rb8 {[%emt 0:13:54]} 11. Bh6 {[%emt 0:01:07]} Be6 {[%emt 0:07:14]} 12. Bxg7 {[%emt 0:03:17]} Kxg7 {[%emt 0:00:03]} 13. Qd4 {[%emt 0:02:01]} Kg8 {[%emt 0:16:58]} 14. Rac1 {[%emt 0:05:14]} a6 {[%emt 0:02:16]} 15. Rfd1 {[%emt 0:07:33]} b5 {[%emt 0:03:18]} 16. cxb5 {[%emt 0:17:42]} axb5 {[%emt 0:00:05]} 17. b3 {[%emt 0:00:30]} Qa5 {[%emt 0:03:25]} 18. e4 {[%emt 0:04:39]} b4 {[%emt 0:02:22]} 19. Nd5 {[%emt 0:03:29]} Bxd5 {[%emt 0:01:19]} 20. exd5 {[%emt 0:00:42]} Qxa2 {[%emt 0:01:09]} 21. Re1 {[%emt 0:08:50]} Rb7 {[%emt 0:05:36]} 22. Re3 {[%emt 0:03:27]} Qa7 {[%emt 0:02:16]} 23. Qc4 {[%emt 0:05:48]} Rfb8 {[%emt 0:06:35]} 24. Bf3 {[%emt 0:05:21]} Rb5 {[%emt 0:03:08]} 25. Qc7 {[%emt 0:03:08]} Qxc7 {[%emt 0:00:06]} 26. Rxc7 {[%emt 0:00:06]} Nxd5 {[%emt 0:00:06]} 27. Bxd5 {[%emt 0:00:24]} Rxd5 {[%emt 0:00:03]} 28. Rexe7 {[%emt 0:00:55]} Rf5 {[%emt 0:10:05]} 29. Rb7 {[%emt 0:02:21]} Rc8 {[%emt 0:01:19]} 30. Rxb4 {[%emt 0:02:35]} Rc1+ {[%emt 0:00:11]} 31. Kg2 {[%emt 0:00:09]} Rc2 {[%emt 0:00:06]} 32. Rf4 {[%emt 0:01:41]} Rxf4 {[%emt 0:00:04]} 33. gxf4 {[%emt 0:00:06]} Rb2 {[%emt 0:00:12]} 34. Rd7 {[%emt 0:01:02]} Rxb3 {[%emt 0:00:28]} 35. Rxd6 {[%emt 0:00:23]} Rb4 {[%emt 0:00:20]} 36. Kg3 {[%emt 0:00:41]} Rb3+ {[%emt 0:01:43]} 37. Kg2 {[%emt 0:00:26]} Kg7 {[%emt 0:01:44]} 38. Rd5 {[%emt 0:01:44]} Kf6 {[%emt 0:00:44]} 1/2-1/2